fUST/lending_fUST_20241217
["ID","MTS","AMOUNT","RATE_DAILY","PERIOD"]
[345682593,1734424242591,-500.0,0.00024657,6]
[345682595,1734424242601,-500.0,0.00024657,6]
[345682597,1734424242610,-500.0,0.00024657,6]
[345682599,1734424242620,-500.0,0.00024657,6]
[345682601,1734424242629,-500.0,0.00024657,6]
[345682604,1734424242641,-506.86190818,0.00024657,6]
[345682607,1734424242651,-500.0,0.00024657,6]
[345682610,1734424242661,-500.0,0.00024657,6]
[345682613,1734424242670,-500.0,0.00024657,6]
[345682616,1734424242679,-500.0,0.00024657,6]
[345682618,1734424242689,-500.0,0.00024657,6]
[345682621,1734424242698,-500.0,0.00024657,6]
[345682624,1734424242707,-500.0,0.00024657,6]
[345682627,1734424242717,-500.0,0.00024657,6]
[345682629,1734424242727,-500.0,0.00024657,6]
[345682631,1734424242736,-430.12333785,0.00024657,6]
[345682633,1734424242746,-503.57957334,0.00024657,6]
[345682635,1734424242755,-500.0,0.00024657,6]
[345682637,1734424242764,-512.48198077,0.00024657,6]
[345682639,1734424242774,-500.0,0.00024657,6]
[345682641,1734424242783,-500.0,0.00024657,6]
[345682644,1734424242792,-500.0,0.00024657,6]
[345682646,1734424242802,-500.0,0.00024657,6]
[345682648,1734424242812,-607.76414842,0.00024657,6]
[345682650,1734424242821,-500.0,0.00024657,6]
[345682652,1734424242831,-500.0,0.00024657,6]
[345682654,1734424242840,-1214.35,0.00024657,6]
[345682656,1734424242850,-500.0,0.00024657,6]
[345682658,1734424242859,-500.0,0.00024657,6]
[345682660,1734424242869,-503.71682771,0.00024657,6]
[345682662,1734424242878,-500.0,0.00024657,6]
[345682663,1734424242889,-246.55462884,0.00024657,6]
[345682664,1734424242898,-500.0,0.00024657,6]
[345682665,1734424242907,-500.0,0.00024657,6]
[345682666,1734424242916,-500.0,0.00024657,6]
[345682667,1734424242926,-500.0,0.00024657,6]
[345682668,1734424242935,-503.93365794,0.00024657,6]
[345682669,1734424242944,-500.0,0.00024657,6]
[345682670,1734424242954,-554.51082628,0.00024657,6]
[345682671,1734424242964,-500.0,0.00024657,6]
[345682672,1734424242974,-500.0,0.00024657,6]
[345682673,1734424242984,-501.47736831,0.00024657,6]
[345682674,1734424242993,-500.0,0.00024657,6]
[345682675,1734424243003,-504.14906467,0.00024657,6]
[345682676,1734424243012,-500.0,0.00024657,6]
[345682677,1734424243021,-500.0,0.00024657,6]
[345682679,1734424243031,-500.0,0.00024657,6]
[345682681,1734424243041,-502.1107285,0.00024657,6]
[345682683,1734424243052,-500.0,0.00024657,6]
[345682685,1734424243063,-500.0,0.00024657,6]
[345682687,1734424243073,-500.0,0.00024657,6]
[345682689,1734424243083,-794.02,0.00024657,6]
[345682691,1734424243093,-500.0,0.00024657,6]
[345682693,1734424243108,-440.29326517,0.00024657,6]
[345682695,1734424243121,-500.0,0.00024657,6]
[345682697,1734424243131,-500.0,0.00024657,6]
[345682699,1734424243143,-500.0,0.00024657,6]
[345682701,1734424243154,-500.0,0.00024657,6]
[345682703,1734424243175,-500.0,0.00024657,6]
[345682705,1734424243186,-500.0,0.00024657,6]
[345682707,1734424243196,-711.23,0.00024657,6]
[345682709,1734424243205,-500.0,0.00024657,6]
[345682712,1734424243215,-506.03612068,0.00024657,6]
[345682714,1734424243225,-500.0,0.00024657,2]
[345682716,1734424243236,-500.0,0.00024657,6]
[345682718,1734424243246,-500.0,0.00024657,6]
[345682720,1734424243260,-500.0,0.00024657,6]
[345682722,1734424243271,-500.0,0.00024657,6]
[345682724,1734424243281,-500.0,0.00024657,6]
[345682726,1734424243290,-500.0,0.00024657,6]
[345682728,1734424243299,-555.57562793,0.00024657,6]
[345682730,1734424243309,-500.0,0.00024657,6]
[345682732,1734424243319,-500.0,0.00024657,6]
[345682734,1734424243329,-844.97,0.00024657,6]
[345682736,1734424243339,-500.0,0.00024657,6]
[345682738,1734424243348,-500.0,0.00024657,6]
[345682740,1734424243358,-500.0,0.00024657,6]
[345682743,1734424243368,-500.0,0.00024657,6]
[345682745,1734424243378,-500.0,0.00024657,6]
[345682747,1734424243390,-500.0,0.00024657,6]
[345682749,1734424243400,-500.0,0.00024657,6]
[345682751,1734424243410,-500.0,0.00024657,6]
[345682753,1734424243419,-500.0,0.00024657,6]
[345682755,1734424243428,-500.0,0.00024657,6]
[345682757,1734424243438,-563.50823581,0.00024657,6]
[345682777,1734424243612,-500.0,0.00024657,6]
[345682779,1734424243622,-500.0,0.00024657,6]
[345682781,1734424243631,-500.0,0.00024657,6]
[345682783,1734424243643,-510.76029016,0.00024657,6]
[345682785,1734424243652,-788.73,0.00024657,6]
[345682787,1734424243661,-237.68953185,0.00024657,6]
[345682789,1734424243671,-500.0,0.00024657,6]
[345682791,1734424243680,-500.0,0.00024657,6]
[345682793,1734424243690,-263.4199712,0.00024657,6]
[345682795,1734424243699,-500.0,0.00024657,6]
[345682797,1734424243709,-500.0,0.00024657,6]
[345682799,1734424243718,-500.0,0.00024657,6]
[345682801,1734424243727,-627.92,0.00024657,6]
[345682803,1734424243736,-500.0,0.00024657,6]
[345682805,1734424243745,-500.0,0.00024657,6]
[345682806,1734424243754,-910.29,0.00024657,6]
[345682808,1734424243763,-500.0,0.00024657,6]
[345682811,1734424243773,-500.0,0.00024657,6]
[345682813,1734424243782,-774.98,0.00024657,6]
[345682815,1734424243792,-512.52417957,0.00024657,6]
[345682817,1734424243801,-500.0,0.00024657,6]
[345682819,1734424243810,-500.0,0.00024657,6]
[345682821,1734424243819,-500.0,0.00024657,6]
[345682822,1734424243829,-505.40474454,0.00024657,6]
[345682825,1734424243838,-500.0,0.00024657,6]
[345682827,1734424243847,-500.0,0.00024657,6]
[345682829,1734424243856,-500.0,0.00024657,6]
[345682830,1734424243865,-263.96196326,0.00024657,7]
[345682832,1734424243874,-500.0,0.00024657,6]
[345682834,1734424243883,-500.0,0.00024657,6]
[345682836,1734424243894,-500.0,0.00024657,6]
[345682838,1734424243903,-1553.26,0.00024657,6]
[345682840,1734424243913,-500.0,0.00024657,6]
[345682843,1734424243923,-500.0,0.00024657,6]
[345682845,1734424243932,-500.0,0.00024657,6]
[345682847,1734424243941,-500.0,0.00024657,6]
[345682849,1734424243950,-500.0,0.00024657,2]
[345682850,1734424243959,-500.0,0.00024657,6]
[345682852,1734424243969,-502.26320245,0.00024657,6]
[345682854,1734424243979,-500.0,0.00024657,6]
[345682857,1734424243988,-500.0,0.00024657,6]
[345682859,1734424243999,-537.62898617,0.00024657,6]
[345682861,1734424244008,-500.0,0.00024657,6]
[345682863,1734424244017,-500.0,0.00024657,6]
[345682865,1734424244026,-604.52,0.00024657,6]
[345682866,1734424244035,-987.23,0.00024657,6]
[345682868,1734424244044,-780.46,0.00024657,6]
[345682870,1734424244054,-500.0,0.00024657,6]
[345682872,1734424244063,-718.59,0.00024657,6]
[345682875,1734424244072,-500.0,0.00024657,6]
[345682877,1734424244082,-500.0,0.00024657,6]
[345682879,1734424244092,-500.0,0.00024657,6]
[345682881,1734424244101,-500.0,0.00024657,6]
[345682883,1734424244111,-500.0,0.00024657,6]
[345682885,1734424244120,-510.04567984,0.00024657,6]
[345682886,1734424244129,-500.0,0.00024657,6]
[345682888,1734424244141,-500.0,0.00024657,6]
[345682890,1734424244151,-500.0,0.00024657,6]
[345682892,1734424244160,-503.66835309,0.00024657,6]
[345682895,1734424244169,-500.0,0.00024657,6]
[345682897,1734424244179,-500.0,0.00024657,6]
[345682899,1734424244188,-1293.26,0.00024657,6]
[345682901,1734424244198,-500.0,0.00024657,6]
[345682903,1734424244208,-500.0,0.00024657,6]
[345682905,1734424244217,-500.0,0.00024657,6]
[345682907,1734424244227,-508.18067532,0.00024657,6]
[345682909,1734424244236,-1910.85,0.00024657,6]
[345682911,1734424244249,-500.0,0.00024657,6]
[345682913,1734424244258,-500.0,0.00024657,6]
[345682915,1734424244267,-500.0,0.00024657,6]
[345682917,1734424244276,-500.0,0.00024657,6]
[345682918,1734424244287,-2573.33,0.00024657,6]
[345682920,1734424244296,-500.0,0.00024657,6]
[345682922,1734424244305,-500.0,0.00024657,6]
[345682924,1734424244315,-591.97,0.00024657,6]
[345682926,1734424244326,-500.0,0.00024657,6]
[345682929,1734424244336,-2286.48,0.00024657,6]
[345682931,1734424244345,-500.0,0.00024657,6]
[345682933,1734424244354,-500.0,0.00024657,6]
[345682935,1734424244364,-500.0,0.00024657,6]
[345682937,1734424244373,-500.0,0.00024657,6]
[345682939,1734424244383,-500.0,0.00024657,6]
[345682941,1734424244398,-500.0,0.00024657,6]
[345682943,1734424244407,-509.43864275,0.00024657,6]
[345682945,1734424244416,-500.0,0.00024657,6]
[345682947,1734424244426,-500.0,0.00024657,6]
[345682948,1734424244435,-526.69,0.00024657,6]
[345682950,1734424244444,-500.0,0.00024657,6]
[345682952,1734424244453,-903.29,0.00024657,6]
[345682954,1734424244462,-151.0,0.00024657,7]
[345682956,1734424244471,-500.0,0.00024657,6]
[345682958,1734424244480,-500.0,0.00024657,6]
[345682960,1734424244489,-500.0,0.00024657,6]
[345682962,1734424244499,-1649.3,0.00024657,2]
[345682964,1734424244508,-500.0,0.00024657,6]
[345682966,1734424244517,-500.0,0.00024657,6]
[345682968,1734424244527,-500.0,0.00024657,6]
[345682970,1734424244536,-500.0,0.00024657,6]
[345682972,1734424244545,-712.81,0.00024657,6]
[345682974,1734424244554,-500.0,0.00024657,6]
[345682976,1734424244564,-520.75076967,0.00024657,6]
[345682978,1734424244574,-500.0,0.00024657,6]
[345682980,1734424244584,-500.0,0.00024657,6]
[345682982,1734424244594,-507.16563996,0.00024657,6]
[345682984,1734424244603,-500.0,0.00024657,6]
[345682986,1734424244612,-500.0,0.00024657,6]
[345682988,1734424244622,-500.0,0.00024657,6]
[345682990,1734424244631,-500.0,0.00024657,6]
[345682992,1734424244645,-286.43,0.00024657,6]
[345682994,1734424244655,-500.0,0.00024657,6]
[345682996,1734424244664,-500.0,0.00024657,6]
[345682998,1734424244676,-500.0,0.00024657,6]
[345683000,1734424244686,-500.0,0.00024657,6]
[345683003,1734424244696,-519.78976045,0.00024657,6]
[345683005,1734424244706,-504.49744675,0.00024657,6]
[345683007,1734424244715,-496.22511651,0.00024657,6]
[345683009,1734424244726,-500.0,0.00024657,6]
[345683011,1734424244740,-521.49,0.00024657,6]
[345683013,1734424244749,-500.0,0.00024657,6]
[345683015,1734424244758,-500.0,0.00024657,6]
[345683017,1734424244769,-500.0,0.00024657,6]
[345683019,1734424244781,-677.86,0.00024657,6]
[345683021,1734424244791,-151.0,0.00024657,7]
[345683023,1734424244800,-1715.94,0.00024657,6]
[345683025,1734424244811,-545.7,0.00024657,6]
[345683027,1734424244820,-500.0,0.00024657,6]
[345683029,1734424244830,-500.0,0.00024657,6]
[345683031,1734424244840,-500.0,0.00024657,6]
[345683033,1734424244850,-500.0,0.00024657,6]
[345683035,1734424244860,-500.0,0.00024657,6]
[345683037,1734424244869,-635.51892013,0.00024657,6]
[345683039,1734424244879,-500.0,0.00024657,6]
[345683041,1734424244892,-517.11,0.00024657,6]
[345683043,1734424244904,-3107.62,0.00024657,6]
[345683045,1734424244913,-500.0,0.00024657,6]
[345683047,1734424244923,-500.0,0.00024657,6]
[345683049,1734424244933,-500.0,0.00024657,6]
[345683051,1734424244943,-500.0,0.00024657,6]
[345683053,1734424244953,-500.0,0.00024657,6]
[345683055,1734424244962,-500.0,0.00024657,6]
[345683057,1734424244972,-500.0,0.00024657,6]
[345683059,1734424244982,-500.0,0.00024657,6]
[345683061,1734424244991,-500.0,0.00024657,6]
[345683063,1734424245001,-500.0,0.00024657,6]
[345683065,1734424245011,-500.0,0.00024657,6]
[345683067,1734424245021,-1887.89,0.00024657,6]
[345683069,1734424245030,-930.43,0.00024657,6]
[345683071,1734424245040,-500.0,0.00024657,6]
[345683073,1734424245050,-500.0,0.00024657,6]
[345683075,1734424245060,-1000.0,0.00024657,2]
[345683077,1734424245070,-500.0,0.00024657,6]
[345683079,1734424245080,-509.82959193,0.00024657,6]
[345683081,1734424245090,-500.0,0.00024657,6]
[345683083,1734424245100,-500.0,0.00024657,6]
[345683085,1734424245110,-2642.26,0.00024657,6]
[345683087,1734424245119,-500.0,0.00024657,6]
[345683089,1734424245129,-500.0,0.00024657,6]
[345683091,1734424245141,-378.00473643,0.00024657,6]
[345683093,1734424245151,-333.85818369,0.00024657,6]
[345683095,1734424245161,-870.14,0.00024657,6]
[345683097,1734424245171,-500.0,0.00024657,6]
[345683099,1734424245180,-500.0,0.00024657,6]
[345683101,1734424245190,-1026.18,0.00024657,6]
[345683103,1734424245199,-500.0,0.00024657,6]
[345683105,1734424245209,-648.52,0.00024657,6]
[345683107,1734424245218,-500.0,0.00024657,6]
[345683109,1734424245227,-649.44,0.00024657,2]
[345683111,1734424245237,-500.0,0.00024657,6]
[345683113,1734424245247,-311.19045063,0.00024657,6]
[345683115,1734424245258,-500.0,0.00024657,6]
[345683117,1734424245268,-500.0,0.00024657,6]
[345683119,1734424245277,-500.0,0.00024657,6]
[345683121,1734424245286,-500.0,0.00024657,6]
[345683123,1734424245296,-500.0,0.00024657,6]
[345683125,1734424245305,-2768.81,0.00024657,6]
[345683127,1734424245315,-6832.57,0.00024657,6]
[345683129,1734424245324,-500.0,0.00024657,6]
[345683131,1734424245333,-500.0,0.00024657,6]
[345683133,1734424245342,-500.0,0.00024657,6]
[345683135,1734424245351,-1817.43,0.00024657,6]
[345683137,1734424245361,-500.0,0.00024657,6]
[345683139,1734424245370,-500.0,0.00024657,6]
[345683141,1734424245379,-507.48090478,0.00024657,6]
[345683143,1734424245391,-7526.42,0.00024657,6]
[345683145,1734424245401,-500.0,0.00024657,6]
[345683147,1734424245410,-500.0,0.00024657,6]
[345683149,1734424245420,-6481.57,0.00024657,6]
[345683151,1734424245429,-500.0,0.00024657,6]
[345683152,1734424245439,-794.02,0.00024657,6]
[345683153,1734424245448,-500.0,0.00024657,6]
[345683154,1734424245458,-10373.72,0.00024657,6]
[345683155,1734424245467,-500.0,0.00024657,6]
[345683156,1734424245476,-500.0,0.00024657,6]
[345683157,1734424245486,-1239.75,0.00024657,6]
[345683158,1734424245495,-500.0,0.00024657,6]
[345683159,1734424245504,-521.18112735,0.00024657,6]
[345683160,1734424245514,-1765.9,0.00024657,6]
[345683161,1734424245523,-1201.5,0.00024657,6]
[345683162,1734424245533,-162.4586486,0.00024657,6]
[345683163,1734424245542,-783.27,0.00024657,6]
[345683165,1734424245550,-3000.0,0.00024657,30]
[345683167,1734424245560,-500.0,0.00024657,6]
[345683170,1734424245568,-1019.66,0.00024657,6]
[345683173,1734424245578,-534.42,0.00024657,6]
[345683175,1734424245587,-1653.2,0.00024657,6]
[345683177,1734424245597,-1412.43,0.00024657,6]
[345683179,1734424245606,-500.0,0.00024657,6]
[345683181,1734424245615,-500.0,0.00024657,6]
[345683183,1734424245629,-500.0,0.00024657,6]
[345683185,1734424245641,-1778.41,0.00024657,5]
[345683187,1734424245650,-500.0,0.00024657,6]
[345683189,1734424245659,-500.0,0.00024657,6]
[345683191,1734424245668,-500.0,0.00024657,6]
[345683193,1734424245677,-500.0,0.00024657,6]
[345683195,1734424245686,-3387.78,0.00024657,6]
[345683197,1734424245695,-500.0,0.00024657,6]
[345683199,1734424245704,-1002.59,0.00024657,6]
[345683201,1734424245713,-1704.13,0.00024657,6]
[345683203,1734424245723,-500.0,0.00024657,6]
[345683205,1734424245732,-500.0,0.00024657,6]
[345683207,1734424245741,-500.0,0.00024657,6]
[345683209,1734424245750,-500.0,0.00024657,6]
[345683211,1734424245759,-500.0,0.00024657,6]
[345683213,1734424245770,-506.29337086,0.00024657,6]
[345683215,1734424245779,-500.0,0.00024657,6]
[345683217,1734424245788,-500.0,0.00024657,6]
[345683219,1734424245797,-502.51306184,0.00024657,6]
[345683221,1734424245806,-324.54280222,0.00024657,6]
[345683223,1734424245816,-500.0,0.00024657,6]
[345683225,1734424245825,-500.0,0.00024657,6]
[345683227,1734424245834,-500.0,0.00024657,6]
[345683229,1734424245843,-504.01774163,0.00024657,6]
[345683231,1734424245852,-558.60536548,0.00024657,6]
[345683233,1734424245861,-500.0,0.00024657,6]
[345683235,1734424245871,-506.43871997,0.00024657,6]
[345683237,1734424245880,-33732.24,0.00024657,6]
[345683239,1734424245891,-439.2640676,0.00024657,6]
[345683241,1734424245900,-3709.48,0.00024657,6]
[345683243,1734424245909,-500.0,0.00024657,6]
[345683245,1734424245918,-500.0,0.00024657,6]
[345683247,1734424245928,-500.0,0.00024657,6]
[345683249,1734424245937,-500.0,0.00024657,6]
[345683251,1734424245947,-500.0,0.00024657,6]
[345683253,1734424245956,-500.0,0.00024657,6]
[345683255,1734424245966,-500.0,0.00024657,6]
[345683257,1734424245975,-500.0,0.00024657,6]
[345683259,1734424245984,-1705.57,0.00024657,6]
[345683261,1734424245994,-505.56482017,0.00024657,6]
[345683263,1734424246004,-500.0,0.00024657,6]
[345683265,1734424246013,-500.0,0.00024657,6]
[345683267,1734424246023,-500.0,0.00024657,6]
[345683269,1734424246033,-508.35727902,0.00024657,6]
[345683271,1734424246044,-500.0,0.00024657,6]
[345683273,1734424246053,-500.0,0.00024657,6]
[345683275,1734424246063,-500.0,0.00024657,6]
[345683277,1734424246073,-1836.6,0.00024657,6]
[345683278,1734424246082,-704.62,0.00024657,6]
[345683281,1734424246093,-500.0,0.00024657,6]
[345683283,1734424246103,-500.0,0.00024657,6]
[345683285,1734424246112,-979.48,0.00024657,6]
[345683287,1734424246122,-500.0,0.00024657,6]
[345683289,1734424246131,-501.91683456,0.00024657,2]
[345683291,1734424246145,-500.0,0.00024657,6]
[345683293,1734424246154,-500.0,0.00024657,6]
[345683295,1734424246163,-500.0,0.00024657,6]
[345683297,1734424246172,-500.0,0.00024657,6]
[345683299,1734424246181,-500.0,0.00024657,6]
[345683301,1734424246191,-4330.72,0.00024657,6]
[345683303,1734424246200,-500.0,0.00024657,6]
[345683305,1734424246209,-500.0,0.00024657,6]
[345683307,1734424246218,-500.0,0.00024657,6]
[345683309,1734424246227,-500.0,0.00024657,6]
[345683311,1734424246237,-610.85,0.00024657,6]
[345683313,1734424246251,-500.0,0.00024657,6]
[345683315,1734424246260,-500.0,0.00024657,6]
[345683317,1734424246269,-500.0,0.00024657,6]
[345683319,1734424246278,-513.95807647,0.00024657,6]
[345683321,1734424246287,-500.0,0.00024657,6]
[345683323,1734424246297,-2529.02,0.00024657,6]
[345683325,1734424246306,-1079.08,0.00024657,6]
[345683327,1734424246316,-500.0,0.00024657,6]
[345683329,1734424246326,-500.0,0.00024657,6]
[345683331,1734424246335,-458.45132116,0.00024657,6]
[345683333,1734424246344,-500.0,0.00024657,6]
[345683335,1734424246353,-501.60318478,0.00024657,6]
[345683337,1734424246363,-2543.43,0.00024657,6]
[345683338,1734424246372,-500.0,0.00024657,6]
[345683340,1734424246381,-500.0,0.00024657,6]
[345683342,1734424246392,-500.0,0.00024657,6]
[345683344,1734424246401,-500.0,0.00024657,6]
[345683346,1734424246411,-530.48,0.00024657,6]
[345683348,1734424246422,-4978.04,0.00024657,6]
[345683351,1734424246431,-500.0,0.00024657,6]
[345683353,1734424246440,-500.0,0.00024657,6]
[345683354,1734424246450,-500.0,0.00024657,6]
[345683356,1734424246459,-500.0,0.00024657,6]
[345683358,1734424246469,-500.0,0.00024657,6]
[345683360,1734424246478,-500.0,0.00024657,6]
[345683362,1734424246488,-500.0,0.00024657,6]
[345683364,1734424246497,-151.0,0.00024657,7]
[345683366,1734424246507,-500.0,0.00024657,6]
[345683368,1734424246516,-1782.0,0.00024657,6]
[345683370,1734424246526,-637.23,0.00024657,6]
[345683372,1734424246535,-500.0,0.00024657,6]
[345683375,1734424246544,-500.0,0.00024657,6]
[345683377,1734424246554,-1595.65,0.00024657,6]
[345683378,1734424246564,-500.0,0.00024657,6]
[345683380,1734424246573,-500.0,0.00024657,6]
[345683383,1734424246583,-500.0,0.00024657,6]
[345683385,1734424246592,-500.0,0.00024657,6]
[345683386,1734424246601,-780.44,0.00024657,6]
[345683389,1734424246611,-500.0,0.00024657,6]
[345683390,1734424246620,-1801.85,0.00024657,6]
[345683393,1734424246630,-1402.82,0.00024657,6]
[345683395,1734424246643,-500.0,0.00024657,6]
[345683396,1734424246652,-500.0,0.00024657,6]
[345683398,1734424246662,-500.0,0.00024657,6]
[345683400,1734424246671,-500.0,0.00024657,6]
[345683402,1734424246681,-542.8,0.00024657,6]
[345683404,1734424246690,-500.0,0.00024657,6]
[345683406,1734424246700,-500.0,0.00024657,6]
[345683408,1734424246709,-503.32965718,0.00024657,6]
[345683410,1734424246719,-1166.17,0.00024657,6]
[345683413,1734424246728,-1240.63,0.00024657,6]
[345683415,1734424246738,-500.0,0.00024657,6]
[345683417,1734424246747,-1591.78,0.00024657,6]
[345683419,1734424246756,-500.0,0.00024657,6]
[345683420,1734424246766,-500.0,0.00024657,6]
[345683423,1734424246775,-500.0,0.00024657,6]
[345683425,1734424246784,-500.0,0.00024657,6]
[345683427,1734424246794,-507.44631265,0.00024657,6]
[345683428,1734424246803,-500.0,0.00024657,6]
[345683430,1734424246812,-2184.89,0.00024657,6]
[345683432,1734424246821,-500.0,0.00024657,6]
[345683434,1734424246831,-500.0,0.00024657,6]
[345683436,1734424246840,-461.08511582,0.00024657,2]
[345683438,1734424246850,-500.0,0.00024657,6]
[345683440,1734424246859,-500.0,0.00024657,6]
[345683443,1734424246869,-500.0,0.00024657,6]
[345683444,1734424246878,-500.0,0.00024657,6]
[345683446,1734424246890,-500.0,0.00024657,6]
[345683449,1734424246900,-887.08,0.00024657,6]
[345683451,1734424246909,-341.9275792,0.00024657,6]
[345683452,1734424246919,-500.0,0.00024657,6]
[345683454,1734424246928,-500.0,0.00024657,6]
[345683457,1734424246937,-500.0,0.00024657,6]
[345683459,1734424246947,-500.0,0.00024657,6]
[345683461,1734424246956,-954.46,0.00024657,6]
[345683463,1734424246966,-500.0,0.00024657,6]
[345683465,1734424246975,-1261.96,0.00024657,6]
[345683467,1734424246984,-991.36,0.00024657,6]
[345683469,1734424246993,-152.677159,0.00024657,7]
[345683470,1734424247002,-214.34000308,0.00024657,6]
[345683473,1734424247011,-2550.14,0.00024657,6]
[345683474,1734424247021,-553.253454,0.00024657,7]
[345683476,1734424247031,-500.0,0.00024657,6]
[345683479,1734424247040,-501.12899628,0.00024657,6]
[345683481,1734424247049,-152.677159,0.00024657,7]
[345683482,1734424247060,-500.0,0.00024657,6]
[345683485,1734424247069,-500.0,0.00024673,2]
[345683487,1734424247080,-500.0,0.00024673,2]
[345683489,1734424247090,-500.0,0.00024673,2]
[345683491,1734424247100,-501.46740338,0.00024673,2]
[345683493,1734424247109,-286.10331847,0.00024673,2]
[345683495,1734424247119,-500.0,0.00024673,2]
[345683497,1734424247128,-230.01495224,0.00024673,2]
[345683499,1734424247138,-500.0,0.00024673,2]
[345683501,1734424247147,-44600.40775496,0.000248,2]
[345683503,1734424247156,-152.677159,0.000248,7]
[345683505,1734424247166,-553.253454,0.000248,7]
[345683507,1734424247175,-152.677159,0.000248,7]
[345683509,1734424247184,-3790.95693885,0.00024831,2]
[345683511,1734424247193,-5000.0,0.000249,7]
[345683513,1734424247203,-151.0,0.000249,7]
[345683515,1734424247212,-151.0,0.000249,7]
[345683517,1734424247223,-376234.74947977,0.0002493,7]
[345683519,1734424247233,-151.0,0.0002493,7]
[345683521,1734424247244,-473.60096768,0.0002493,2]
[345683523,1734424247253,-152.677159,0.0002493,7]
[345683526,1734424247267,-553.253454,0.0002493,7]
[345683528,1734424247276,-152.677159,0.0002493,7]
[345683530,1734424247285,-500.0,0.00024931,6]
[345683531,1734424247294,-512.04547965,0.00024931,6]
[345683534,1734424247304,-500.0,0.00024931,2]
[345683536,1734424247314,-500.0,0.00024931,6]
[345683538,1734424247323,-500.0,0.00024931,6]
[345683540,1734424247333,-503.1814047,0.00024931,6]
[345683542,1734424247343,-500.0,0.00024931,6]
[345683544,1734424247352,-500.0,0.00024931,6]
[345683546,1734424247361,-500.0,0.00024931,6]
[345683548,1734424247371,-500.0,0.00024931,6]
[345683550,1734424247380,-500.0,0.00024931,6]
[345683552,1734424247392,-500.0,0.00024931,6]
[345683554,1734424247401,-513.59214843,0.00024931,6]
[345683556,1734424247410,-500.0,0.00024931,6]
[345683558,1734424247418,-500.0,0.00024931,6]
[345683560,1734424247427,-642.52,0.00024931,6]
[345683562,1734424247436,-500.0,0.00024931,6]
[345683579,1734424247583,-500.0,0.00024931,6]
[345683581,1734424247593,-500.0,0.00024931,6]
[345683583,1734424247602,-500.0,0.00024931,6]
[345683585,1734424247611,-535.38,0.00024931,6]
[345683587,1734424247620,-508.90507156,0.00024931,6]
[345683589,1734424247630,-500.0,0.00024931,6]
[345683591,1734424247641,-506.4924741,0.00024931,6]
[345683593,1734424247650,-500.0,0.00024931,6]
[345683595,1734424247660,-500.0,0.00024931,6]
[345683597,1734424247669,-500.0,0.00024931,6]
[345683599,1734424247679,-500.0,0.00024931,6]
[345683601,1734424247688,-500.0,0.00024931,6]
[345683603,1734424247697,-500.0,0.00024931,6]
[345683604,1734424247706,-500.0,0.00024931,6]
[345683605,1734424247715,-500.0,0.00024931,6]
[345683606,1734424247723,-500.0,0.00024931,6]
[345683607,1734424247733,-500.0,0.00024931,6]